[Event "Memorial Ukrainian Chess Warriors 2024"]
[Site "Lviv"]
[Date "2024.03.15"]
[Round "7.4"]
[White "Stolbov, Mikhail G."]
[Black "Kravtsiv, Martyn"]
[Result "0-1"]
[ECO "A46"]
[WhiteElo "2205"]
[BlackElo "2598"]
[Annotator "TA"]
[PlyCount "48"]
[EventDate "2024.03.06"]
[EventType "swiss"]
[EventCountry "UKR"]
[SourceTitle "playchess.com"]
[Source "ChessBase"]
[SourceQuality "1"]
[TimeControl "600+5"]

{[%evp 9,48,0,0,0,0,0,0,-20,-14,-18,-18,-38,10,-13,14,23,38,-16,-11,-239,-230,-238,-220,-323,-159,-275,0,-168,-110,-287,-275,-859,-861,-932,-631,-848,-683,-29989,-29990,-29998,-29999]} 1. d4 {[%emt 0:00:02]} Nf6 {[%emt 0:00:01]} 2. Nf3 {[%emt 0:00:02]} e6 {[%emt 0:00:02]} 3. Bg5 {[%emt 0:00:03]} d5 {[%emt 0:00:04]} 4. e3 {[%emt 0:00:02]} h6 {[%emt 0:00:15]} 5. Bf4 {[%emt 0:00:02]} c5 {[%emt 0:00:29]} 6. c3 {[%emt 0:00:03]} Nc6 {[%emt 0:00:03]} 7. Nbd2 {[%emt 0:00:05]} Bd6 {[%emt 0:00:20]} 8. g3 {[%emt 0:02:01] The position is equal.} O-O {[%emt 0:00:27]} 9. Bd3 {[%emt 0:00:06]} Qe7 {[%emt 0:01:52]} 10. Ne5 {[%emt 0:00:29]} Qc7 {[%emt 0:01:45]} (10... Bxe5 $15 {deserves consideration.} 11. dxe5 Nd7) 11. Ndf3 {[%emt 0:00:19]} b6 {[%emt 0:00:35]} 12. g4 {[%emt 0:03:07]} Ne4 {[%emt 0:02:19]} 13. g5 (13. Nxc6 $1 $14 Bxf4 14. exf4 Qxc6 15. Ne5) 13... hxg5 $11 14. Bxe4 $2 {[%emt 0:01:32]} (14. Nxg5 $11 Bxe5 15. dxe5 (15. Qh5 Nxg5 16. dxe5 Ne4 $11) 15... Nxg5 (15... Nxe5 $2 16. Bxe4 g6 17. Bc2 $18) 16. Rg1) 14... dxe4 $19 {[%emt 0:00:24]} (14... gxf4 15. Bh7+ Kh8 (15... Kxh7 16. Ng5+ Kh6 17. Qg4 $17) 16. Bc2 Nxe5 17. Nxe5 $17) 15. Nxg5 {[%emt 0:00:59] [#] Qh5 would kill now.} f6 $1 {[%emt 0:00:01]} 16. h4 {[%emt 0:02:13]} (16. Ng6 {might work better.} Bxf4 (16... fxg5 $2 17. Bxd6 Qxd6 18. Nxf8 $19) 17. exf4 fxg5 18. Qh5) 16... fxe5 {[%emt 0:01:01]} (16... Bxe5 17. dxe5 fxg5 18. hxg5) (16... fxg5 $19 17. hxg5 Bxe5 18. dxe5 Qf7 (18... Nxe5 $2 19. g6 $19)) 17. Rg1 {[%emt 0:00:16]} (17. Qh5 $17 g6 (17... Rxf4 $2 18. Qh7+ Kf8 19. dxc5 $18) 18. Qxg6+ Qg7 19. Qxg7+ Kxg7 20. Nxe4 exf4 (20... cxd4 $2 21. Bg5 $17) 21. Nxd6) 17... Rf6 $2 {[%emt 0:01:30]} (17... exf4 18. Qh5 Rf5 19. Qh7+ Kf8 20. Nxe4 $19) (17... Be7 $19 18. dxe5 Bxg5 (18... Nxe5 $2 19. Bxe5 Qxe5 20. Qh5 $19) 19. Rxg5 Ba6) 18. Nxe4 $2 {[%emt 0:00:04] [#]} (18. dxe5 $1 $11 {and White has nothing to worry.} Nxe5 (18... Bxe5 19. Qh5 $16) 19. Bxe5 Bxe5 20. Qh5) 18... Rf5 {[%emt 0:00:13]} ({Avoid the trap} 18... Rxf4 $2 19. exf4 Bf8 (19... exf4 $2 20. Qh5 $18) 20. Ng5 $18) (18... Rf7 $1 $19 19. dxc5 Bxc5) 19. dxe5 {[%emt 0:00:07]} (19. Nxd6 $17 Qxd6 20. Bh6) 19... Bxe5 {[%emt 0:00:04]} 20. Bxe5 {[%emt 0:00:06]} (20. Bh6 Kf8 21. Bg5) 20... Nxe5 {[%emt 0:00:01]} ({Less strong is} 20... Rxe5 21. Qg4 $15) 21. Rg3 {[%emt 0:00:04] Dodges Nf3+} Bb7 {[%emt 0:00:02]} 22. Ng5 {[%emt 0:00:05]} Rd8 {[%emt 0:00:19]} 23. Qh5 {[%emt 0:00:04] Qh7+ would now be deadly.} Nd3+ {[%emt 0:00:01]} 24. Kf1 {[%emt 0:00:04]} Rxf2+ {[%emt 0:00:01] Weighted Error Value: White=1.16/Black=0.78.  Loses game:     	White=3     	---        Missed win:     	---       	Black=2      Mistake:       	White=4     	Black=2      Inaccurate:     	---       	Black=1      OK:         	White=2     	Black=4      Strong:       	---       	Black=1} 0-1

[Event "Memorial Ukrainian Chess Warriors 2024"]
[Site "Lviv"]
[Date "2024.03.15"]
[Round "7.5"]
[White "Grinev, Valeriy"]
[Black "Guivan, Vasily"]
[Result "1/2-1/2"]
[ECO "A43"]
[WhiteElo "2422"]
[BlackElo "2013"]
[Annotator "TA"]
[PlyCount "85"]
[EventDate "2024.03.06"]
[EventType "swiss"]
[EventCountry "UKR"]
[SourceTitle "playchess.com"]
[Source "ChessBase"]
[SourceQuality "1"]
[TimeControl "600+5"]

{[%evp 17,85,48,45,26,58,62,89,77,100,100,108,18,14,32,71,85,87,87,97,87,146,122,139,118,133,102,103,100,122,41,62,64,70,51,48,29,55,24,33,0,16,26,31,40,200,172,147,0,1,-14,150,0,0,-121,-89,-729,-704,-1327,0,0,0,0,0,0,0,0,0,0,0,0]} 1. d4 {[%emt 0:00:02]} Nf6 {[%emt 0:00:01]} 2. Nf3 {[%emt 0:00:02][%cal Bg1f3,Bf3d2,Bd2c4][%mdl 32]} c5 {[%emt 0:00:12]} 3. d5 {[%emt 0:00:03]} d6 {[%emt 0:00:04]} 4. Nc3 {[%emt 0:00:04]} g6 {[%emt 0:00:03]} 5. e4 {[%emt 0:00:02]} Bg7 {[%emt 0:00:01]} 6. Be2 {[%emt 0:00:03]} Bg4 {[%emt 0:00:09]} 7. Nd2 {[%emt 0:00:05]} Bxe2 {[%emt 0:00:45]} 8. Qxe2 {[%emt 0:00:03]} Nbd7 {[%emt 0:00:07]} 9. O-O {[%emt 0:00:07]} O-O {[%emt 0:00:05]} 10. Nc4 {[%emt 0:00:04]} Ne8 {[%emt 0:00:32]} 11. Bg5 {[%emt 0:01:36]} Bf6 {[%emt 0:01:52]} 12. Bh6 {[%emt 0:00:20] White is better.} Bg7 {[%emt 0:00:05]} 13. Bxg7 {[%emt 0:00:03]} Kxg7 {[%emt 0:00:17]} 14. e5 {[%emt 0:00:06] White has more active pieces. The black rooks are passive.} (14. a4 $16) 14... dxe5 $11 {[%emt 0:00:28]} 15. Nxe5 {[%emt 0:00:03]} Nxe5 {[%emt 0:00:40]} 16. Qxe5+ {[%emt 0:00:03]} f6 {[%emt 0:00:01]} 17. Qe3 {[%emt 0:00:11]} Nd6 {[%emt 0:00:04][%cal Be8d6,Bd6c4,Bc4b2][%mdl 32]} 18. Qxc5 {[%emt 0:00:14]} b6 {[%emt 0:00:07]} (18... Qb6 $142 19. Qxb6 axb6) 19. Qe3 {[%emt 0:00:07]} Rc8 {[%emt 0:00:02]} 20. Rfe1 {[%emt 0:00:06]} Rf7 {[%emt 0:00:02]} 21. Qd3 {[%emt 0:00:36]} Qc7 {[%emt 0:00:07]} 22. Re2 {[%emt 0:00:20]} Nc4 {[%emt 0:00:58] [#]} 23. Nb5 {[%emt 0:00:52]} (23. Nd1 $1 $16) 23... Qd7 $14 {[%emt 0:00:10]} 24. Nd4 {[%emt 0:01:04] aiming for b3.} Nxb2 {[%emt 0:00:08]} 25. Ne6+ {[%emt 0:00:03]} Kg8 {[%emt 0:00:01]} 26. Qd4 $36 {[%emt 0:00:03][%mdl 2048] White fights for an advantage.} Nc4 {[%emt 0:00:13]} 27. h4 {[%emt 0:00:15][%cal Bh2h4,Bh4h5][%mdl 32]} Nd6 {[%emt 0:00:04] [#]} 28. h5 $1 {[%emt 0:00:04]} Qb5 {[%emt 0:02:18]} 29. Rae1 {[%emt 0:00:22]} Rc4 {[%emt 0:00:36]} 30. Qd2 {[%emt 0:00:03]} Qb4 $2 {[%emt 0:00:41]} ({Better is} 30... Rg4 $14) 31. hxg6 {[%emt 0:00:10]} hxg6 {[%emt 0:00:03] [#]} 32. Qh6 {[%emt 0:00:04] Dodges Qxd2} (32. Qd3 $1 $16 {[%cal Rd3g6]} Rg4 33. f3) 32... Rg4 $11 {[%emt 0:00:07]} 33. c3 {[%emt 0:02:24]} Qc4 {[%emt 0:00:18]} (33... Qxc3 $11 34. g3 Nf5) 34. g3 {[%emt 0:01:17]} ({White has to play} 34. f3 $16 Nf5 35. Qd2) 34... Nf5 {[%emt 0:00:04]} 35. Qd2 {[%emt 0:00:02]} (35. Qh1 $11) 35... Rh7 $17 {[%emt 0:00:12] Threatens to win with ...Rh5.} 36. Nd4 $2 {[%emt 0:00:17][%mdl 8192]} Qxd5 {[%emt 0:00:06]} 37. Nf3 {[%emt 0:00:18]} Qxf3 $2 {[%emt 0:00:35]} ({Black should try} 37... Nd4 $19 38. Qxd4 Rxd4) 38. Qd8+ $11 {[%emt 0:00:01] The position is equal.} Kg7 {[%emt 0:00:05][%csl Gh7][%cal Rf3h1,Bg8g7,Bg7h6,Bh6g5][%mdl 32]} 39. Rxe7+ $1 {[%emt 0:00:02]} Nxe7 {[%emt 0:00:01]} 40. Rxe7+ {[%emt 0:00:01]} Kh6 {[%emt 0:00:02] ( -> ...Rxe7)} 41. Qf8+ {[%emt 0:00:02]} Kg5 {[%emt 0:00:08]} 42. Rxh7 {[%emt 0:00:26]} Rxg3+ {[%emt 0:00:11]} 43. fxg3 {Weighted Error Value: White=0.76/Black=0.52.  Loses game:     	White=1     	---        Mistake:       	White=5     	Black=3      Inaccurate:     	White=3     	Black=4      OK:         	White=6     	Black=10     Best:        	---       	Black=2      Strong:       	White=1     	---} 1/2-1/2

[Event "Memorial Ukrainian Chess Warriors 2024"]
[Site "Lviv"]
[Date "2024.03.15"]
[Round "7.6"]
[White "Alexikov, Alexander"]
[Black "Shevchenko, Yaroslav"]
[Result "0-1"]
[ECO "B47"]
[WhiteElo "2183"]
[BlackElo "1971"]
[Annotator "RC"]
[PlyCount "128"]
[EventDate "2024.03.06"]
[EventType "swiss"]
[EventCountry "UKR"]
[SourceTitle "playchess.com"]
[Source "ChessBase"]
[SourceQuality "1"]
[TimeControl "600+5"]

1. e4 {[%emt 0:00:00]} c5 {[%emt 0:00:04]} 2. Nf3 {[%emt 0:00:02]} e6 {[%emt 0:00:02]} 3. Nc3 {[%emt 0:00:01]} Nc6 {[%emt 0:00:05]} 4. d4 {[%emt 0:00:02]} cxd4 {[%emt 0:00:01]} 5. Nxd4 {[%emt 0:00:01]} Qc7 {[%emt 0:00:01]} 6. Nb3 {[%emt 0:00:54]} Nf6 {[%emt 0:00:13]} 7. Bd3 {[%emt 0:00:16]} a6 {[%emt 0:00:04]} 8. f4 {[%emt 0:00:09]} d6 {[%emt 0:00:02]} 9. a4 {[%emt 0:00:25]} Be7 {[%emt 0:00:11]} 10. a5 {[%emt 0:00:12]} b6 {[%emt 0:01:22]} 11. axb6 {[%emt 0:00:44]} Qxb6 {[%emt 0:00:01]} 12. Qe2 {[%emt 0:00:23]} Nb4 {[%emt 0:01:30]} 13. Be3 {[%emt 0:00:31]} Nxd3+ {[%emt 0:00:08]} 14. Qxd3 {[%emt 0:00:02]} Qc7 {[%emt 0:00:16]} 15. h3 {[%emt 0:00:38]} Bb7 {[%emt 0:00:45]} 16. Na5 {[%emt 0:00:16]} Nd7 {[%emt 0:00:23]} 17. O-O {[%emt 0:00:52]} O-O {[%emt 0:00:07]} 18. Rfd1 {[%emt 0:00:24]} Rfb8 {[%emt 0:00:14]} 19. Nxb7 {[%emt 0:00:34]} Qxb7 {[%emt 0:00:02]} 20. b3 {[%emt 0:00:31]} Qc6 {[%emt 0:00:05]} 21. Na4 {[%emt 0:00:30]} Rb4 {[%emt 0:00:29]} 22. e5 {[%emt 0:01:01]} d5 {[%emt 0:00:57]} 23. c4 {[%emt 0:00:13]} Nc5 {[%emt 0:00:40]} 24. Nxc5 {[%emt 0:00:18]} Bxc5 {[%emt 0:00:03]} 25. cxd5 {[%emt 0:00:07]} Qxd5 {[%emt 0:00:24]} 26. Qc3 {[%emt 0:02:02]} Bxe3+ {[%emt 0:00:49]} 27. Qxe3 {[%emt 0:00:02]} Qb7 {[%emt 0:00:10]} 28. Rd3 {[%emt 0:00:12]} h5 {[%emt 0:00:12]} 29. Rad1 {[%emt 0:00:09]} Qb6 {[%emt 0:00:40]} 30. Qxb6 {[%emt 0:00:15]} Rxb6 {[%emt 0:00:01]} 31. Rd8+ {[%emt 0:00:01]} Rxd8 {[%emt 0:00:01]} 32. Rxd8+ {[%emt 0:00:01]} Kh7 {[%emt 0:00:00]} 33. Rd3 {[%emt 0:00:14]} h4 {[%emt 0:00:06]} 34. Kf2 {[%emt 0:00:08]} Kg6 {[%emt 0:00:02]} 35. g4 {[%emt 0:00:07]} hxg3+ {[%emt 0:00:05]} 36. Rxg3+ {[%emt 0:00:01]} Kh6 {[%emt 0:00:02]} 37. Rd3 {[%emt 0:00:05]} Rb4 {[%emt 0:00:01]} 38. Kg3 {[%emt 0:00:03]} a5 {[%emt 0:00:07]} 39. h4 {[%emt 0:00:26]} Kh5 {[%emt 0:00:01]} 40. Rc3 {[%emt 0:00:07]} Rd4 {[%emt 0:00:22]} 41. Re3 {[%emt 0:00:07]} Rd1 {[%emt 0:00:05]} 42. Rc3 {[%emt 0:00:10]} Rb1 {[%emt 0:00:05]} 43. Rd3 {[%emt 0:00:02]} Rg1+ {[%emt 0:00:03]} 44. Kh2 {[%emt 0:00:03]} Rg4 {[%emt 0:00:05]} 45. Rf3 {[%emt 0:00:05]} Rxh4+ {[%emt 0:00:15]} 46. Kg3 {[%emt 0:00:01]} Rg4+ 47. Kf2 Kg6 {[%emt 0:00:02]} 48. Ke3 {[%emt 0:00:16]} Kf5 {[%emt 0:00:03]} 49. Rf1 {[%emt 0:00:09]} Rg3+ {[%emt 0:00:01]} 50. Kd4 {[%emt 0:00:01]} Rxb3 {[%emt 0:00:03]} 51. Rg1 {[%emt 0:00:04]} g6 {[%emt 0:00:05]} 52. Ra1 {[%emt 0:00:08]} Rb4+ {[%emt 0:00:02]} 53. Kc5 {[%emt 0:00:01]} Rxf4 {[%emt 0:00:02]} 54. Kd6 {[%emt 0:00:03]} a4 {[%emt 0:00:05]} 55. Ra3 {[%emt 0:00:02]} g5 {[%emt 0:00:03]} 56. Re3 {[%emt 0:00:15]} g4 {[%emt 0:00:04]} 57. Ke7 {[%emt 0:00:01]} Re4 {[%emt 0:00:06]} 58. Ra3 {[%emt 0:00:01]} Kxe5 {[%emt 0:00:04]} 59. Kxf7 {[%emt 0:00:02]} Kf4 60. Kf6 {[%emt 0:00:18]} g3 {[%emt 0:00:02]} 61. Ra2 {[%emt 0:00:01]} Kf3 {[%emt 0:00:04]} 62. Ra3+ {[%emt 0:00:04]} Re3 {[%emt 0:00:01]} 63. Rxa4 {[%emt 0:00:03]} g2 {[%emt 0:00:01]} 64. Ra1 {[%emt 0:00:01]} Kf2 {[%emt 0:00:02]} 0-1

[Event "Memorial Ukrainian Chess Warriors 2024"]
[Site "Lviv"]
[Date "2024.03.15"]
[Round "7.7"]
[White "Hnatyshyn, Anastasiya"]
[Black "Bykovskiy, Oleg"]
[Result "1-0"]
[ECO "B01"]
[WhiteElo "2017"]
[BlackElo "2231"]
[Annotator "TA"]
[PlyCount "77"]
[EventDate "2024.03.06"]
[EventType "swiss"]
[EventCountry "UKR"]
[SourceTitle "playchess.com"]
[Source "ChessBase"]
[SourceQuality "1"]
[TimeControl "600+5"]

{[%evp 15,77,20,29,24,13,21,25,4,7,2,11,0,0,0,6,0,8,5,33,21,24,29,52,49,73,33,62,68,62,60,57,48,57,68,41,61,56,0,18,0,18,5,99,99,187,54,57,62,83,0,210,0,0,0,1006,230,272,269,29955,4133,29985,5085,29998,29999]} 1. e4 {[%emt 0:00:02]} d5 {[%emt 0:00:00]} 2. exd5 {[%emt 0:00:02]} Qxd5 {[%emt 0:00:01]} 3. d4 {[%emt 0:00:03]} Nf6 {[%emt 0:00:04]} 4. Nc3 {[%emt 0:00:03]} Qa5 {[%emt 0:00:02]} 5. Nf3 {[%emt 0:00:05]} Bf5 {[%emt 0:00:01]} 6. Bc4 {[%emt 0:00:28]} e6 {[%emt 0:00:01]} 7. O-O {[%emt 0:00:05]} c6 {[%emt 0:00:17]} 8. Bf4 {[%emt 0:00:15]} Nbd7 {[%emt 0:00:10]} 9. Qe2 {[%emt 0:00:37]} Be7 {[%emt 0:00:08]} 10. h3 {[%emt 0:00:12]} O-O {[%emt 0:01:52]} 11. a3 {[%emt 0:01:11] White has an edge.} Nd5 {[%emt 0:01:31]} 12. Nxd5 {[%emt 0:01:53]} cxd5 {[%emt 0:00:02]} 13. Bd3 {[%emt 0:00:03]} Bxd3 {[%emt 0:00:03]} 14. Qxd3 {[%emt 0:00:02]} Rac8 {[%emt 0:00:13]} 15. Rae1 {[%emt 0:00:29]} Bf6 {[%emt 0:00:34]} 16. c3 {[%emt 0:00:34]} b5 {[%emt 0:00:45]} 17. h4 {[%emt 0:00:25]} Rfe8 {[%emt 0:01:05]} 18. h5 {[%emt 0:00:10]} a6 {[%emt 0:00:24]} 19. g4 {[%emt 0:00:53]} h6 {[%emt 0:00:32]} 20. Kh2 {[%emt 0:00:37]} Nf8 {[%emt 0:01:27]} 21. Rg1 {[%emt 0:00:26]} Nh7 {[%emt 0:00:01]} 22. g5 {[%emt 0:00:11] White is more active.} hxg5 {[%emt 0:00:01]} 23. Nxg5 {[%emt 0:00:13]} Bxg5 {[%emt 0:00:35]} 24. Bxg5 {[%emt 0:00:02]} Qc7+ {[%emt 0:00:12]} 25. Kh3 {[%emt 0:00:36] [#] Bh6 would now be deadly.} Kh8 {[%emt 0:00:27]} 26. Qe3 {[%emt 0:01:44]} (26. Bd2 {seems wilder.} Qe7 27. Qg3 Qf6 28. Qg4) 26... f6 {[%emt 0:00:38]} 27. Bh4 {[%emt 0:00:12]} (27. Bf4 $5 Qf7 28. Qe2 $15) 27... Qf7 {[%emt 0:00:05]} 28. Qf3 {[%emt 0:00:18]} a5 {[%emt 0:00:30]} (28... Rc4 $1 $11 {keeps the balance.}) 29. Rg6 $16 {[%emt 0:00:02]} b4 {[%emt 0:00:12]} 30. axb4 {[%emt 0:00:17]} (30. cxb4 $18 axb4 31. Reg1 (31. axb4 Rc4 $14)) 30... axb4 $14 {[%emt 0:00:01]} 31. Reg1 {[%emt 0:00:01]} bxc3 {[%emt 0:00:16]} 32. h6 {[%emt 0:00:18]} (32. bxc3 $16 {Hoping for h6.} Re7 33. Rxg7 Qxg7 34. Rxg7 Rxg7 35. Bxf6 Nxf6 36. Qxf6 Rxc3+ 37. Kh4) 32... e5 $2 {[%emt 0:00:13]} (32... cxb2 $2 33. Rxg7 $18) (32... Qxg6 $1 $11 33. Rxg6 cxb2) 33. Rxg7 $2 {[%emt 0:00:04]} (33. bxc3 e4 34. hxg7+ Kg8 $16) (33. hxg7+ $6 Kg8 34. bxc3 f5) (33. Kh2 $18 {[%cal Rg6g7]} e4 34. hxg7+ Kg8 35. Qf5) 33... Qe6+ $11 {[%emt 0:00:01]} 34. Kh2 {[%emt 0:00:03] Black must now prevent Qh5. Chess con chili.} Re7 $2 {[%emt 0:00:05][%mdl 8192]} (34... cxb2 $2 35. Qg3 Ng5 (35... exd4 36. Rxh7+ Kxh7 37. Qg7#) 36. Bxg5 exd4 (36... fxg5 37. Qxg5 Rg8 38. h7) 37. Be3 $18) (34... Ng5 $11 35. Bxg5 fxg5) 35. bxc3 $2 $40 {[%emt 0:00:13][%mdl 128] White is out for blood.} (35. Qg3 {White wants to mate with Qg6.} Ng5 36. Bxg5 (36. bxc3 exd4 37. cxd4 Rc6 $18) 36... fxg5 37. Qxg5) 35... Rxg7 $18 36. Rxg7 {[%emt 0:00:03] Qg3 is the strong threat.} Rg8 $2 {[%emt 0:00:07]} (36... f5 $18) 37. Qg3 {[%emt 0:00:03]} (37. Rxg8+ $142 Kxg8 38. Qg3+ Kf7 39. Qg7+ Ke8 40. Qxh7 e4 41. Qg7 Qf7 42. Qxf6 (42. Qxf7+ Kxf7 43. Kg3 Kg6 44. Kf4 Kh7 45. Bxf6 Kxh6 46. Ke5 Kg6)) 37... exd4 {[%emt 0:00:04]} 38. cxd4 {[%emt 0:00:01]} (38. Qg6 $142 Qe5+ 39. Bg3 Qh5+ 40. Qxh5 Rxg7 41. hxg7+ Kxg7 42. Bf4 (42. Qxd5 dxc3 43. Qd7+ Kg8 $18) (42. Qg4+ Ng5 $18) 42... Ng5 43. Bxg5 (43. cxd4 Nf7 44. Qxd5 Nh8 45. Kh3 Kg6 46. Kg4 Nf7 47. Qe6 Kg7)) 38... Re8 {[%emt 0:00:02] [#]} 39. Rxh7+ $1 {[%emt 0:00:04][%mdl 512] Weighted Error Value: White=0.51/Black=0.75.  Loses game:     	---       	Black=2      Missed win:     	White=1     	---        Mistake:       	White=4     	Black=3      Inaccurate:     	White=2     	Black=3      OK:         	White=10    	Black=9      Best:        	White=1     	Black=2} 1-0

[Event "Memorial Ukrainian Chess Warriors 2024"]
[Site "Lviv"]
[Date "2024.03.15"]
[Round "7.8"]
[White "Baziuk, Vladyslav"]
[Black "Smolkin, Alexander"]
[Result "1-0"]
[ECO "E65"]
[WhiteElo "2211"]
[BlackElo "1957"]
[Annotator "RC"]
[PlyCount "113"]
[EventDate "2024.03.06"]
[EventType "swiss"]
[EventCountry "UKR"]
[SourceTitle "playchess.com"]
[Source "ChessBase"]
[SourceQuality "1"]
[TimeControl "600+5"]

1. Nf3 {[%emt 0:00:02]} Nf6 {[%emt 0:00:03]} 2. d4 {[%emt 0:00:05]} g6 {[%emt 0:00:03]} 3. c4 {[%emt 0:00:01]} Bg7 {[%emt 0:00:03]} 4. Nc3 {[%emt 0:00:04]} d6 {[%emt 0:00:03]} 5. g3 {[%emt 0:00:02]} O-O {[%emt 0:00:04]} 6. Bg2 {[%emt 0:00:01]} c5 {[%emt 0:00:09]} 7. O-O {[%emt 0:00:26]} Nc6 {[%emt 0:00:43]} 8. e3 {[%emt 0:00:57]} Bf5 {[%emt 0:01:03]} 9. b3 {[%emt 0:00:12]} Re8 {[%emt 0:00:26]} 10. Bb2 {[%emt 0:00:07]} e5 {[%emt 0:00:09]} 11. Nb5 {[%emt 0:02:50]} exd4 {[%emt 0:02:03]} 12. exd4 {[%emt 0:00:03]} a6 {[%emt 0:00:18]} 13. Na3 {[%emt 0:00:23]} Ne4 {[%emt 0:00:22]} 14. Nc2 {[%emt 0:00:08]} Qd7 {[%emt 0:00:28]} 15. Ne3 {[%emt 0:00:33]} Bh3 {[%emt 0:00:17]} 16. Nd5 {[%emt 0:00:07]} Rad8 {[%emt 0:00:42]} 17. Rb1 {[%emt 0:00:45]} Bg4 {[%emt 0:01:16]} 18. dxc5 {[%emt 0:00:28]} dxc5 {[%emt 0:00:35]} 19. Bxg7 {[%emt 0:00:10]} Kxg7 {[%emt 0:00:02]} 20. Qc1 {[%emt 0:00:06]} Bxf3 {[%emt 0:00:23]} 21. Bxf3 {[%emt 0:00:03]} Nd4 {[%emt 0:00:02]} 22. Qb2 {[%emt 0:00:12]} Ng5 {[%emt 0:00:08]} 23. Bg2 {[%emt 0:01:06]} Nh3+ {[%emt 0:00:21]} 24. Bxh3 {[%emt 0:00:20]} Qxh3 {[%emt 0:00:02]} 25. Nf4 {[%emt 0:00:29]} Qf5 {[%emt 0:00:35]} 26. Rbe1 {[%emt 0:00:20]} Qf6 {[%emt 0:00:12]} 27. Kg2 {[%emt 0:00:24]} Qc6+ {[%emt 0:00:22]} 28. Nd5 {[%emt 0:00:26]} Rxd5 {[%emt 0:00:31]} 29. cxd5 {[%emt 0:00:04]} Qxd5+ {[%emt 0:00:01]} 30. f3 {[%emt 0:00:06]} Rxe1 {[%emt 0:00:02]} 31. Rxe1 {[%emt 0:00:01]} Qxf3+ {[%emt 0:00:02]} 32. Kg1 {[%emt 0:00:02]} Qf6 {[%emt 0:00:21]} 33. Rb1 {[%emt 0:00:13]} Qf3 {[%emt 0:00:26]} 34. Rf1 {[%emt 0:00:18]} Qd5 {[%emt 0:00:16]} 35. Qf2 {[%emt 0:00:09]} b5 {[%emt 0:00:18]} 36. Qf6+ {[%emt 0:00:05]} Kg8 {[%emt 0:00:04]} 37. Kf2 {[%emt 0:00:48]} Nf5 {[%emt 0:00:01]} 38. Re1 {[%emt 0:00:11]} Qd2+ {[%emt 0:00:09]} 39. Re2 {[%emt 0:00:02]} Qd7 {[%emt 0:00:01]} 40. Qe5 {[%emt 0:00:08]} Qd3 {[%emt 0:00:10]} 41. Qxc5 {[%emt 0:00:06]} Nd4 {[%emt 0:00:07]} 42. Re8+ {[%emt 0:00:19]} Kg7 {[%emt 0:00:01]} 43. Qe5+ {[%emt 0:00:04]} Kh6 {[%emt 0:00:00]} 44. Qe3+ {[%emt 0:00:02]} Qxe3+ {[%emt 0:00:02]} 45. Kxe3 {[%emt 0:00:02]} Nf5+ {[%emt 0:00:03]} 46. Kf4 {[%emt 0:00:03]} Nd4 {[%emt 0:00:15]} 47. Ra8 {[%emt 0:00:04]} Ne6+ {[%emt 0:00:03]} 48. Ke5 {[%emt 0:00:04]} Nc5 {[%emt 0:00:03]} 49. Kd5 {[%emt 0:00:07]} Nd3 {[%emt 0:00:03]} 50. Ke4 {[%emt 0:00:12]} Nc5+ {[%emt 0:00:02]} 51. Kd4 {[%emt 0:00:01]} Ne6+ {[%emt 0:00:00]} 52. Ke3 {[%emt 0:00:00]} Nc5 {[%emt 0:00:00]} 53. b4 {[%emt 0:00:03]} Ne6 {[%emt 0:00:00]} 54. Rxa6 {[%emt 0:00:02]} Nc7 {[%emt 0:00:00]} 55. Rd6 {[%emt 0:00:04]} f5 {[%emt 0:00:00]} 56. a3 {[%emt 0:00:02]} Kg5 {[%emt 0:00:00]} 57. Rd7 {[%emt 0:00:03]} 1-0